bitfinex/quotes_SOLUSD_20250912
["timestamp","ask_amount","ask_price","bid_price","bid_amount"]
[1757698260589,0.7,239.84,239.78,0.7]
[1757698260891,4.22927598,239.85,239.79,32.66]
[1757698261087,0.06,239.85,239.8,0.7]
[1757698261863,0.06,239.85,239.81,0.7]
[1757698262070,0.06,239.85,239.82,32.66]
[1757698262274,0.06,239.85,239.83,0.7]
[1757698264085,0.06,239.85,239.83,4.86961971]
[1757698264382,0.06,239.85,239.84,0.7]
[1757698265379,0.06,239.85,239.84,4.86944629]
[1757698266181,0.06,239.85,239.84,18.4650403]
[1757698266892,0.06,239.88,239.85,13.59559401]
[1757698267191,0.1,239.89,239.87,13.59559401]
[1757698267410,0.1,239.89,239.88,14.01246911]
[1757698267620,0.1,239.89,239.88,18.18122015]
[1757698267778,0.1,239.89,239.88,18.88122015]
[1757698270382,0.06,239.9,239.89,13.59559401]
[1757698270688,0.06,239.9,239.89,46.91559401]
[1757698271985,0.06,239.9,239.89,51.08417127]
[1757698272706,0.06,239.96,239.89,141.34247215]
[1757698272916,0.06,239.96,239.91,13.59559401]
[1757698273182,0.06,239.96,239.92,32.6]
[1757698273499,0.1,239.99,239.93,14.01238223]
[1757698273694,0.1,239.99,239.95,13.59559401]
[1757698273893,0.1,239.99,239.96,32.68]
[1757698274213,0.7,239.98,239.9,26.0]
[1757698274384,0.1,239.99,239.91,0.7]
[1757698274585,0.1,239.99,239.92,46.59559401]
[1757698274781,0.1,239.99,239.93,0.7]
[1757698274988,0.8,239.99,239.93,0.7]
[1757698275210,4.96688744,239.99,239.92,0.7]
[1757698275414,0.8,239.99,239.93,33.04]
[1757698275711,0.8,239.99,239.94,33.2]
[1757698275913,0.1,239.99,239.94,33.9]
[1757698276114,0.1,239.99,239.95,0.7]
[1757698276415,0.1,239.99,239.94,4.1676737]
[1757698276618,0.8,239.99,239.96,33.2]
[1757698277217,0.1,239.99,239.96,33.2]
[1757698278104,0.8,239.99,239.97,33.18]
[1757698278415,0.7,239.98,239.95,33.18]
[1757698278713,0.7,239.97,239.95,33.18]
[1757698280601,0.7,239.97,239.91,4.86819191]
[1757698280602,0.7,239.96,239.94,33.22]
[1757698280917,0.7,239.96,239.94,33.2]
[1757698281304,5.02690317,239.99,239.92,0.7]
[1757698281505,5.02690317,239.99,239.93,33.2]
[1757698283228,0.16,239.99,239.94,0.7]
[1757698283404,0.86,239.99,239.94,0.7]
[1757698283603,0.86,239.99,239.94,80.12]
[1757698283815,5.02687747,239.99,239.94,80.12]
[1757698284516,5.02687747,239.99,239.94,0.7]
[1757698284703,0.16,239.99,239.95,0.72]
[1757698284903,4.32687947,239.99,239.94,0.72]
[1757698285328,4.99687947,239.99,239.94,0.72]
[1757698285630,0.16,239.99,239.95,0.72]
[1757698286025,4.32684283,239.99,239.95,0.72]
[1757698286422,4.99684283,239.99,239.93,33.92]
[1757698286625,4.99684283,239.99,239.93,0.72]
[1757698286823,4.99684283,239.99,239.9,0.72]
[1757698287020,4.99684283,239.99,239.92,33.24]
[1757698287336,4.83702176,239.98,239.92,33.96]
[1757698288025,4.83702176,239.98,239.92,0.72]
[1757698288216,4.83702176,239.98,239.92,34.0]
[1757698288417,4.83702176,239.98,239.92,0.72]
[1757698288620,0.67,239.97,239.91,33.28]
[1757698289309,0.67,239.97,239.91,34.0]
[1757698289535,4.16702176,239.98,239.92,0.72]
[1757698290109,4.83702176,239.98,239.92,0.72]
[1757698290720,0.67,239.98,239.92,0.72]
[1757698291228,4.83701393,239.98,239.92,4.88803664]
[1757698291406,4.83701393,239.98,239.92,0.72]
[1757698292332,26.16,239.99,239.92,0.72]
[1757698292529,0.16,239.99,239.93,13.59559401]
[1757698292829,0.16,239.99,239.95,13.59559401]
[1757698293237,0.16,239.99,239.92,4.16797474]
[1757698293238,0.83,239.99,239.93,0.72]
[1757698293532,0.16,239.99,239.93,0.72]
[1757698293828,0.83,239.99,239.93,0.72]
[1757698294035,4.99689297,239.99,239.93,0.72]
[1757698294345,4.99689297,239.99,239.94,13.59559401]
[1757698294346,0.16,239.99,239.94,13.59559401]
[1757698294544,0.16,239.99,239.95,0.72]
[1757698294839,0.16,239.99,239.88,13.59559401]
[1757698294840,0.67,239.98,239.88,13.59559401]
[1757698295010,0.67,239.97,239.88,0.72]
[1757698296341,4.16736122,239.96,239.88,4.88871923]
[1757698296541,4.16736122,239.96,239.89,0.72]
[1757698296729,0.67,239.97,239.89,0.72]
[1757698297509,0.67,239.97,239.93,0.03]
[1757698297925,4.16728918,239.97,239.93,0.75]
[1757698298720,4.83728918,239.97,239.93,0.03]
[1757698300213,4.16728918,239.97,239.93,0.03]
[1757698300418,4.16728918,239.97,239.94,0.72]
[1757698300648,30.99698901,239.99,239.94,0.72]
[1757698301029,0.67,239.98,239.93,0.03]
[1757698302350,4.16718756,239.97,239.93,0.03]
[1757698302536,4.83718756,239.97,239.93,0.03]
[1757698302736,0.67,239.96,239.93,0.03]
[1757698303451,4.16747747,239.96,239.93,0.03]
[1757698304246,4.83747747,239.96,239.93,0.03]
[1757698304453,0.67,239.95,239.93,0.03]
[1757698304838,4.16747747,239.96,239.93,0.03]
[1757698305035,0.67,239.94,239.93,0.03]
[1757698305241,0.67,239.95,239.93,0.03]
[1757698305446,0.67,239.96,239.93,0.03]
[1757698305646,0.67,239.94,239.93,0.03]
[1757698307368,3.28184243,239.94,239.93,0.03]
[1757698307678,41.02955102,239.94,239.93,0.03]
[1757698308547,26.0,239.91,239.88,0.03]
[1757698308757,13.59559401,239.89,239.88,0.03]
[1757698309073,13.59559401,239.89,239.82,0.03]
[1757698309074,26.0,239.86,239.82,0.03]
[1757698309365,26.0,239.86,239.78,0.03]
[1757698309366,2.61184243,239.83,239.78,0.03]
[1757698309573,28.61184243,239.8,239.78,0.03]
[1757698309939,26.66,239.8,239.78,0.03]
[1757698310368,0.66,239.8,239.78,0.03]
[1757698310660,26.66,239.8,239.78,0.03]
[1757698311160,39.08633839,239.8,239.78,0.03]
[1757698311368,26.0,239.8,239.78,0.03]
[1757698311571,30.17014178,239.8,239.78,0.03]
[1757698311739,4.17014178,239.8,239.78,0.03]
[1757698313055,4.83014178,239.8,239.78,0.03]
[1757698313371,4.17014178,239.8,239.78,0.03]
[1757698313573,4.83014178,239.8,239.78,0.03]
[1757698314163,45.89829568,239.8,239.78,1e-08]
[1757698314351,2.61184243,239.79,239.78,1e-08]
[1757698314681,30.83014178,239.8,239.78,1e-08]
[1757698314971,3.31184243,239.79,239.78,1e-08]
[1757698315568,14.29559401,239.79,239.78,1e-08]
[1757698316155,16.90743644,239.79,239.78,1e-08]
[1757698316655,26.0,239.77,239.76,1e-08]
[1757698316970,26.0,239.74,239.69,0.03]
[1757698317172,28.61184243,239.74,239.69,0.03]
[1757698317374,29.31184243,239.74,239.72,1e-08]
[1757698317572,33.78,239.73,239.71,1e-08]
[1757698317748,36.39184243,239.73,239.71,1e-08]
[1757698318067,4.87153345,239.72,239.71,1e-08]
[1757698318247,7.48337588,239.72,239.71,1e-08]
[1757698318452,21.07896989,239.72,239.71,1e-08]
[1757698318853,18.46712746,239.72,239.71,1e-08]
[1757698319069,21.07896989,239.72,239.71,1e-08]
[1757698319985,26.0,239.69,239.64,0.2]
[1757698320293,52.36547079,239.72,239.56,0.69]
[1757698320294,28.61184243,239.65,239.62,1e-08]
[1757698320491,26.0,239.62,239.61,1e-08]
[1757698320769,26.0,239.58,239.51,0.1]
[1757698320972,26.0,239.58,239.52,0.69]
[1757698321176,26.0,239.54,239.52,0.69]
[1757698321375,33.78,239.53,239.51,0.1]
[1757698321954,33.8,239.53,239.52,0.69]
[1757698323258,4.17468881,239.54,239.52,0.69]
[1757698323559,4.17468881,239.54,239.53,0.69]
[1757698323874,37.97468881,239.54,239.53,0.69]
[1757698324182,33.78,239.54,239.53,0.69]
[1757698324855,33.78,239.56,239.53,0.69]
[1757698325284,4.1736227,239.6,239.53,4.86479478]
[1757698325486,4.1736227,239.6,239.54,0.69]
[1757698325487,33.78,239.57,239.54,0.69]
[1757698325781,33.78,239.58,239.54,0.69]
[1757698326089,30.17337693,239.62,239.54,80.29]
[1757698326256,33.78,239.61,239.55,0.69]
[1757698326683,0.7,239.6,239.52,0.69]
[1757698327965,26.0,239.58,239.51,0.1]
[1757698328163,14.61072844,239.55,239.51,0.1]
[1757698328576,15.31072844,239.55,239.51,0.1]
[1757698329279,0.7,239.54,239.51,0.1]
[1757698329465,26.0,239.52,239.51,0.1]
[1757698329671,29.31184243,239.52,239.51,0.1]
[1757698330184,30.1750167,239.52,239.51,0.1]
[1757698330358,63.9150167,239.52,239.51,0.1]
[1757698330777,63.9350167,239.52,239.51,0.1]
[1757698330980,30.1750167,239.52,239.51,0.1]
[1757698331200,63.9150167,239.52,239.51,0.1]
[1757698331995,0.7,239.59,239.51,0.79]
[1757698332202,4.1736227,239.6,239.51,0.79]
[1757698332377,37.9136227,239.6,239.51,0.79]
[1757698332568,4.87205557,239.69,239.52,13.59559401]
[1757698332873,4.87205557,239.69,239.54,13.59559401]
[1757698332874,33.72,239.68,239.54,13.59559401]
[1757698333079,62.33184243,239.68,239.55,0.69]
[1757698333289,63.03184243,239.68,239.55,0.69]
[1757698333470,60.42,239.68,239.55,0.69]
[1757698333673,14.60341302,239.67,239.56,4.17431958]
[1757698333993,0.06,239.61,239.57,0.69]
[1757698335185,0.06,239.61,239.58,13.59559401]
[1757698335375,0.06,239.61,239.6,13.59559401]
[1757698335579,0.06,239.61,239.6,47.29559401]
[1757698335876,0.06,239.64,239.6,62.59327347]
[1757698336184,0.06,239.64,239.62,13.59559401]
[1757698336685,0.06,239.64,239.63,14.28559401]
[1757698336988,0.06,239.66,239.64,13.59559401]
[1757698337190,26.0,239.76,239.66,13.59559401]
[1757698337382,4.97043557,239.79,239.67,0.69]
[1757698337562,30.97043557,239.79,239.68,13.59559401]
[1757698337763,4.97043557,239.79,239.69,4.86205557]
[1757698337967,26.1,239.79,239.7,0.69]
[1757698338194,26.1,239.79,239.7,34.37]
[1757698338380,30.27033707,239.79,239.71,0.69]
[1757698338595,0.1,239.79,239.71,0.69]
[1757698339371,4.27032389,239.79,239.71,0.69]
[1757698339570,26.0,239.78,239.71,0.69]
[1757698339971,4.87066355,239.77,239.68,0.69]
[1757698340393,4.17066355,239.77,239.68,0.69]
[1757698340603,4.17066355,239.77,239.68,14.28559401]
[1757698340906,4.17066355,239.77,239.69,0.69]
[1757698341399,11.22609021,239.79,239.69,0.69]
[1757698341400,4.97041542,239.79,239.69,0.69]
[1757698341772,0.1,239.79,239.7,13.59559401]
[1757698341974,26.1,239.79,239.71,4.86170747]
[1757698342179,26.1,239.79,239.72,0.69]
[1757698342585,0.1,239.79,239.72,0.69]
[1757698343882,0.1,239.79,239.74,4.17118545]
[1757698344196,0.1,239.79,239.75,0.7]
[1757698345207,0.1,239.79,239.76,0.7]
[1757698345378,0.1,239.79,239.77,0.7]
[1757698346012,0.1,239.79,239.78,4.17048961]
[1757698346490,0.1,239.79,239.78,0.7]
[1757698347016,0.1,239.79,239.78,34.24]
[1757698348625,0.1,239.79,239.78,33.54]
[1757698350115,0.1,239.79,239.78,34.24]
[1757698351432,0.1,239.79,239.78,47.83559401]
[1757698352816,0.1,239.79,239.78,52.00608362]
[1757698353423,0.16,239.79,239.78,0.7]
[1757698353736,0.16,239.79,239.78,79.6]
[1757698355119,0.85,239.79,239.77,79.6]
[1757698355310,4.33031569,239.79,239.78,79.6]
[1757698356020,0.16,239.79,239.78,79.6]
[1757698356330,0.16,239.79,239.78,80.3]
[1757698356528,0.16,239.79,239.78,113.76]
[1757698356720,0.16,239.79,239.78,113.06]
[1757698357033,0.16,239.79,239.78,113.76]
[1757698357229,0.16,239.79,239.78,113.06]
[1757698358535,0.16,239.79,239.78,113.76]
[1757698358912,0.16,239.79,239.78,113.06]
[1757698360141,0.16,239.79,239.78,38.33048961]
[1757698360649,0.16,239.79,239.78,33.44]
[1757698360815,0.16,239.79,239.78,34.14]
[1757698362442,0.16,239.79,239.78,0.7]
[1757698362743,0.16,239.79,239.73,79.6]
[1757698362744,5.02031569,239.79,239.73,79.6]
[1757698362927,5.02031569,239.79,239.68,0.7]
[1757698362928,0.69,239.78,239.68,4.87222093]
[1757698363121,0.69,239.77,239.69,33.42]
[1757698363321,14.75610492,239.79,239.69,33.42]
[1757698363634,0.69,239.76,239.69,33.42]
[1757698364049,0.69,239.75,239.66,4.17241504]
[1757698364344,0.69,239.74,239.67,34.12]
[1757698364529,4.17135944,239.73,239.67,34.12]
[1757698364837,0.69,239.72,239.67,33.4]
[1757698365041,4.17135944,239.73,239.67,79.6]
[1757698365042,0.69,239.71,239.67,79.6]
[1757698365217,0.69,239.7,239.67,79.6]
[1757698365418,0.69,239.69,239.65,33.4]
[1757698365618,0.69,239.68,239.63,33.42]
[1757698366233,14.59975805,239.73,239.6,79.63]
[1757698366234,0.69,239.67,239.6,79.63]
[1757698366445,0.69,239.66,239.6,33.43]
[1757698366623,0.69,239.65,239.6,33.43]
[1757698366952,0.69,239.65,239.6,0.03]
[1757698368046,0.69,239.67,239.6,0.03]
[1757698368348,4.86292605,239.64,239.6,0.03]
[1757698368522,4.17292605,239.64,239.6,0.03]
[1757698369240,4.86292605,239.64,239.6,0.03]
[1757698369423,4.17292605,239.64,239.6,0.03]
[1757698369624,4.86292605,239.64,239.6,0.03]
[1757698370220,0.69,239.66,239.6,0.72]
[1757698370420,10.43057409,239.68,239.6,4.89359198]
[1757698370421,4.17254081,239.67,239.6,4.89359198]
[1757698370627,4.86254081,239.67,239.6,0.72]
[1757698372141,4.86254081,239.67,239.6,4.89361178]
[1757698372521,0.69,239.67,239.6,4.89361178]
[1757698372847,0.06,239.68,239.61,34.07]
[1757698373152,4.2323157,239.68,239.61,0.69]
[1757698373324,4.2323157,239.68,239.61,34.05]
[1757698373520,0.06,239.68,239.61,34.05]
[1757698373749,0.06,239.68,239.62,0.69]
[1757698374247,0.06,239.68,239.63,4.17310019]
[1757698374439,0.06,239.68,239.64,0.68]
[1757698374626,0.06,239.68,239.65,0.68]
[1757698374829,0.06,239.68,239.65,34.04]
[1757698375022,0.06,239.68,239.66,0.68]
[1757698375424,4.90225169,239.68,239.63,79.6]
[1757698375652,0.67,239.67,239.63,79.6]
[1757698376443,4.84257781,239.66,239.63,79.6]
[1757698376647,0.67,239.65,239.63,79.6]
[1757698377829,14.60402235,239.66,239.63,79.6]
[1757698378023,0.67,239.65,239.63,79.6]
[1757698378544,4.17292605,239.64,239.6,0.03]
[1757698378742,10.05032857,239.68,239.61,0.68]
[1757698378743,4.17240372,239.67,239.61,0.68]
[1757698378944,0.73,239.68,239.6,0.03]
[1757698379244,4.90236456,239.68,239.6,0.03]
[1757698379749,0.06,239.68,239.61,0.68]
[1757698380338,4.23226417,239.68,239.61,0.68]
[1757698380546,0.06,239.68,239.61,0.68]
[1757698380766,4.2322791,239.68,239.61,4.85341689]
[1757698381049,0.06,239.68,239.62,0.68]
[1757698381227,0.06,239.68,239.62,35.26]
[1757698381425,0.06,239.68,239.63,0.68]
[1757698381645,0.67,239.67,239.62,34.58]
[1757698381841,0.67,239.67,239.6,0.03]
[1757698382031,4.9022757,239.68,239.6,0.03]
[1757698382759,26.0,239.61,239.6,0.03]
[1757698382957,35.99032857,239.61,239.6,0.03]
[1757698383168,36.66032857,239.61,239.6,0.03]
[1757698384755,4.84344852,239.61,239.6,0.03]
[1757698384957,14.83377709,239.61,239.6,0.03]
[1757698385741,31.21459379,239.61,239.6,0.03]
[1757698386653,4.84344852,239.61,239.6,0.03]
[1757698386946,49.35377709,239.61,239.6,0.03]
[1757698387151,39.36344852,239.61,239.6,0.03]
[1757698387350,14.83377709,239.61,239.6,0.03]
[1757698387535,4.17344852,239.61,239.6,0.03]
[1757698388958,4.17323142,239.63,239.6,0.03]
[1757698390541,15.27598191,239.63,239.6,0.03]
[1757698390935,14.60598191,239.63,239.6,0.03]
[1757698392563,15.27598191,239.63,239.6,0.03]
[1757698392877,0.67,239.62,239.6,0.03]
[1757698393181,26.0,239.61,239.6,0.03]
[1757698393399,10.66032857,239.62,239.6,0.03]
[1757698393583,0.67,239.61,239.6,0.03]
[1757698394083,26.0,239.61,239.6,0.03]
[1757698394281,61.07,239.61,239.6,0.03]
[1757698394582,60.4,239.61,239.6,0.03]
[1757698394881,60.44,239.61,239.6,0.03]
[1757698395472,4.17323142,239.63,239.6,0.03]
[1757698395675,4.17323142,239.63,239.6,0.71]
[1757698396190,4.17323142,239.63,239.6,0.03]
[1757698397087,4.17323142,239.63,239.61,0.68]
[1757698397294,0.06,239.68,239.62,0.68]
[1757698397491,4.17257766,239.67,239.62,0.68]
[1757698397671,4.17257766,239.67,239.63,0.68]
[1757698397872,4.17257766,239.67,239.64,0.68]
[1757698398299,4.17257766,239.67,239.61,0.68]
[1757698398597,0.06,239.68,239.63,13.59559401]
[1757698398781,0.06,239.68,239.64,0.68]
[1757698399377,0.06,239.68,239.6,14.63766056]
[1757698399378,0.06,239.68,239.65,0.68]
[1757698399782,0.06,239.68,239.6,78.27919781]
[1757698399783,0.06,239.68,239.66,0.68]
[1757698400800,0.06,239.68,239.67,0.68]
[1757698402504,0.06,239.68,239.64,0.68]
[1757698402802,0.06,239.68,239.65,0.68]
[1757698403208,4.23225917,239.68,239.65,0.68]
[1757698403706,4.23225917,239.68,239.62,0.68]
[1757698404080,0.06,239.68,239.62,0.68]
[1757698404310,4.23226002,239.68,239.62,0.68]
[1757698405505,0.65,239.67,239.6,0.03]
[1757698405911,10.64032857,239.67,239.6,0.03]
[1757698406219,10.64032857,239.67,239.6,0.69]
[1757698406424,10.64032857,239.67,239.6,0.03]
[1757698406582,26.0,239.63,239.6,0.03]
[1757698406986,34.56,239.66,239.6,0.69]
[1757698407203,26.0,239.66,239.61,0.66]
[1757698407405,4.17275192,239.65,239.6,0.03]
[1757698407787,4.82275192,239.65,239.6,0.03]
[1757698408289,4.17275192,239.65,239.6,0.69]
[1757698408605,4.17275192,239.65,239.6,0.03]
[1757698408807,0.65,239.64,239.6,0.03]
[1757698408985,4.17275192,239.65,239.6,0.03]
[1757698409696,26.0,239.66,239.61,0.66]
[1757698409895,26.0,239.66,239.6,0.69]
[1757698410515,30.17264453,239.66,239.6,0.69]
[1757698410712,0.71,239.68,239.6,0.69]
[1757698410713,0.06,239.68,239.6,4.8635474]
[1757698410914,0.06,239.68,239.61,14.25559401]
[1757698411413,0.06,239.68,239.63,13.59559401]
[1757698411822,0.06,239.68,239.64,0.66]
[1757698412202,0.06,239.68,239.65,4.17275192]
[1757698412401,0.06,239.68,239.66,0.66]
[1757698412815,0.06,239.68,239.67,13.59559401]
[1757698413317,0.06,239.68,239.67,14.25559401]
[1757698414305,0.06,239.68,239.67,18.42799773]
[1757698414514,0.06,239.68,239.67,53.14799773]
[1757698417434,0.16,239.79,239.78,0.66]
[1757698418415,0.16,239.79,239.76,34.8]
[1757698418615,0.16,239.79,239.75,14.25559401]
[1757698418818,0.16,239.79,239.75,48.37559401]
[1757698419124,0.16,239.79,239.76,0.66]
[1757698419331,0.16,239.79,239.77,0.66]
[1757698419519,0.16,239.79,239.78,0.66]
[1757698420133,0.16,239.79,239.75,48.37559401]
[1757698420728,4.33037802,239.79,239.75,34.78]
[1757698421122,4.33037802,239.79,239.71,17.76717116]
[1757698421324,4.33037802,239.79,239.71,39.61157715]
[1757698421325,4.98037802,239.79,239.71,39.61157715]
[1757698421526,0.16,239.79,239.72,0.66]
[1757698421846,4.33033824,239.79,239.72,0.66]
[1757698422925,4.33033824,239.79,239.72,4.83152132]
[1757698423640,4.33033824,239.79,239.72,0.66]
[1757698423842,0.65,239.78,239.71,34.78]
[1757698424045,4.33033824,239.79,239.72,0.66]
[1757698425033,4.33033824,239.79,239.72,4.83145771]
[1757698426140,4.98033824,239.79,239.7,14.25559401]
[1757698426340,0.65,239.78,239.7,53.12743507]
[1757698426532,0.65,239.78,239.7,48.29559401]
[1757698426736,0.65,239.78,239.7,34.7]
[1757698426939,4.17066355,239.77,239.7,34.7]
[1757698427343,4.17066355,239.77,239.69,26.7]
[1757698427543,0.65,239.76,239.67,34.68]
[1757698427733,26.0,239.72,239.63,0.7]
[1757698428150,26.65,239.72,239.63,0.7]
[1757698428342,0.65,239.72,239.63,0.7]
[1757698428946,4.17170747,239.71,239.63,4.87309456]
[1757698429134,4.17170747,239.71,239.63,0.7]
[1757698429333,0.65,239.7,239.63,0.7]
[1757698429930,0.65,239.7,239.63,4.87308999]
[1757698430131,4.17170747,239.71,239.64,0.7]
[1757698430553,4.17149712,239.73,239.65,13.59559401]
[1757698430731,4.1708375,239.76,239.67,13.59559401]
[1757698431055,4.17048961,239.78,239.7,4.17188151]
[1757698431261,4.17048961,239.78,239.71,0.7]
[1757698431450,26.0,239.77,239.71,0.7]
[1757698431848,4.17048961,239.78,239.71,0.7]
[1757698432253,4.17048961,239.78,239.67,24.02660058]
[1757698432254,0.65,239.77,239.67,0.7]
[1757698432453,0.65,239.77,239.67,39.51239908]
[1757698433441,14.59793126,239.76,239.67,35.34]
[1757698433641,14.59793126,239.76,239.67,39.5123851]
[1757698433838,14.59793126,239.76,239.67,35.34]
[1757698434063,0.66,239.75,239.64,0.72]
[1757698434245,0.66,239.75,239.65,34.6]
[1757698434561,0.66,239.75,239.66,0.72]
[1757698436034,4.17118545,239.74,239.66,0.72]
[1757698436449,4.17118545,239.74,239.66,4.89250533]
[1757698437340,0.66,239.77,239.67,0.72]
[1757698437558,0.66,239.78,239.67,0.72]
[1757698437757,0.66,239.77,239.67,0.72]
[1757698438160,4.1708375,239.76,239.68,4.17222963]
[1757698438357,4.1708375,239.76,239.69,0.72]
[1757698439637,4.1708375,239.76,239.68,4.17222963]
[1757698439638,4.8308375,239.76,239.68,4.17222963]
[1757698440266,14.59793126,239.76,239.67,0.72]
[1757698440455,0.66,239.75,239.65,48.11559401]
[1757698440656,0.66,239.75,239.66,0.72]
[1757698441241,0.66,239.75,239.66,0.75]
[1757698441442,4.17118545,239.74,239.66,4.92257512]
[1757698442040,4.17118545,239.74,239.67,0.72]
[1757698443351,10.42709376,239.76,239.68,4.17222963]
[1757698443555,10.42709376,239.76,239.69,0.72]
[1757698444560,14.59793126,239.76,239.69,0.72]
[1757698444774,15.25793126,239.76,239.69,0.72]
[1757698445152,15.25793126,239.76,239.68,4.17222963]
[1757698445552,0.66,239.75,239.68,4.17222963]
[1757698445753,4.17118545,239.74,239.67,0.72]
[1757698445962,4.17118545,239.74,239.66,0.03]
[1757698445963,0.66,239.73,239.66,34.45]
[1757698446160,0.66,239.72,239.66,0.03]
[1757698446351,6.35849406,239.71,239.66,0.03]
[1757698446668,26.0,239.68,239.66,0.03]
[1757698447060,0.66,239.67,239.66,0.03]
[1757698447857,4.83240372,239.67,239.66,0.03]
[1757698448057,4.17240372,239.67,239.66,0.03]
[1757698448465,4.83214093,239.69,239.66,0.03]
[1757698448667,11.08881861,239.73,239.66,0.75]
[1757698448956,4.17153345,239.72,239.66,0.75]
[1757698449351,4.17127462,239.74,239.66,80.35]
[1757698449558,4.17127462,239.74,239.67,0.72]
[1757698449966,4.17101147,239.75,239.67,4.89234933]
[1757698450981,4.17101147,239.75,239.68,0.72]
[1757698451352,30.1708417,239.76,239.68,0.72]
[1757698451566,30.1708417,239.76,239.68,80.32]
[1757698452182,30.8308417,239.76,239.69,4.17205557]
[1757698453179,30.8308417,239.76,239.68,80.32]
[1757698453376,30.8308417,239.76,239.68,84.49221717]
[1757698454376,4.1708417,239.76,239.69,48.63559401]
[1757698454680,26.16,239.79,239.7,0.72]
[1757698454883,30.33034102,239.79,239.7,0.72]
[1757698455678,0.66,239.78,239.71,34.28]
[1757698456264,4.1708375,239.76,239.71,79.6]
[1757698456481,0.66,239.75,239.71,79.6]
[1757698457161,14.59793126,239.76,239.71,79.6]
[1757698457583,15.25793126,239.76,239.71,79.6]
[1757698457965,0.66,239.75,239.71,79.6]
[1757698458490,15.25914907,239.74,239.71,79.6]
[1757698458794,15.25914907,239.74,239.68,34.22]
[1757698459602,4.83118545,239.74,239.68,34.22]
[1757698459893,4.17099492,239.76,239.68,39.1122096]
[1757698460498,4.17099492,239.76,239.68,38.3922096]
[1757698460697,4.17099492,239.76,239.69,0.72]
[1757698461467,10.52948898,239.76,239.69,0.72]
[1757698461774,15.25808868,239.76,239.68,34.22]
[1757698461974,15.25808868,239.76,239.67,4.17239455]
[1757698462181,15.25808868,239.76,239.67,38.35239455]
[1757698462383,15.25808868,239.76,239.67,39.07239455]
[1757698462588,15.25808868,239.76,239.67,34.9]
[1757698463004,0.66,239.75,239.67,34.9]
[1757698463208,6.35849406,239.74,239.67,34.9]
[1757698463803,0.66,239.75,239.67,80.32]
[1757698464008,6.35849406,239.69,239.67,79.6]
[1757698464196,0.69,239.68,239.66,0.03]
[1757698464396,6.35849406,239.67,239.66,0.03]
[1757698464711,10.53050069,239.7,239.66,0.03]
[1757698465082,11.22050069,239.7,239.66,0.03]
[1757698466205,0.69,239.69,239.66,0.03]
[1757698466503,6.35849406,239.68,239.66,0.03]
[1757698466687,7.04849406,239.68,239.66,0.03]
[1757698466887,0.69,239.67,239.66,0.03]
[1757698467207,7.04849406,239.67,239.66,0.03]
[1757698468207,10.42883363,239.72,239.66,0.03]